Cogmind - Beta 16 @@@ ROGUE MODE // 2025.11.03 @ 14:46:55 Player: pappous Result: Destroyed by Y-45 Defender with Beam Rifle Performance ------------- Evolutions (1) 500 Regions Visited (3) 600 Robots Destroyed (34) 170 Value Destroyed (857) 857 Prototype IDs (3) 60 Alien Tech Used (0) 0 Bonus (0) 0 TOTAL SCORE: 2187 Bonus ------- None Cogmind --------- Core Integrity 0/400 Matter 39/300 Energy 236/250 System Corruption 0% Temperature Cool (72) Movement Treading (240) Ox1 Location -9/Storage Parts ------- > --- POWER (1) -------- Ion Engine > --- PROPULSION (2) --- Light Treads Armored Wheel > --- UTILITY (4) ------ Heat Sink Large Storage Unit Drone Bay (2/2) > --- WEAPON (2) ------- Advanced Beam Cannon Autogun > --- INVENTORY (15) --- Ion Engine Light Treads Light Treads Light Treads Armored Wheel Huge Storage Unit Signal Interpreter Drone Bay (2/2) Improved Medium Laser Advanced Beam Cannon Advanced Beam Cannon Mini Grenade Launcher Mini Grenade Launcher Peak State ------------ > --- POWER ------------ Ion Engine > --- PROPULSION ------- Light Treads Armored Wheel > --- UTILITY ---------- Heat Sink Large Storage Unit Drone Bay > --- WEAPON ----------- Advanced Beam Cannon Autogun > --- INVENTORY -------- Ion Engine Light Treads Light Treads Light Treads Armored Wheel Huge Storage Unit Signal Interpreter Improved Medium Laser Advanced Beam Cannon Advanced Beam Cannon Mini Grenade Launcher Mini Grenade Launcher [Rating: 18] Favorites ----------- Power Ion Engine Engine Ion Engine Propulsion Light Treads Treads Light Treads Wheel Armored Wheel Utility Large Storage Unit Device Heat Sink Storage Large Storage Unit Protection Medium Armor Plating Weapon Assault Rifle Energy Gun Spread Laser Energy Cannon Advanced Beam Cannon Ballistic Gun Assault Rifle Launcher Mini Grenade Launcher Build | -11 -10 -9 -9 ------- Run | Yrd Mat Mat Sto Slots Evolved 2 | . . 2 . Power . | . . . . Propulsion . | . . . . Utility 2 | . . 2 . Weapon . | . . . . Parts Attached 34 | 6 9 13 6 Power 4 | 1 1 1 1 Engine 4 | 1 1 1 1 Core . | . . . . Reactor . | . . . . Propulsion 10 | 2 4 3 1 Treads 6 | 1 3 1 1 Leg . | . . . . Wheel 4 | 1 1 2 . Hover . | . . . . Flight . | . . . . Utility 5 | 1 1 2 1 Device 2 | . . 1 1 Storage 2 | 1 1 . . Processor . | . . . . Hackware . | . . . . Protection 1 | . . 1 . Artifact . | . . . . Weapon 15 | 2 3 7 3 Energy Gun 3 | . 1 1 1 Energy Cannon 1 | . . . 1 Ballistic Gun 8 | 2 1 4 1 Ballistic Cannon . | . . . . Launcher 3 | . 1 2 . Special Weapon . | . . . . Impact Weapon . | . . . . Slashing Weapon . | . . . . Piercing Weapon . | . . . . Special Melee Weapon . | . . . . Unidentified Prototypes 3 | . . 1 2 Parts Lost 12 | . 3 9 . Power 1 | . . 1 . Propulsion 5 | . 1 4 . Utility 1 | . . 1 . Weapon 5 | . 2 3 . Highest Loss Streak 8 | . 3 8 . To Critical Strikes . | . . . . Average Backups 11 | 1 9 14 12 Power 1 | . 1 2 1 Propulsion 5 | . 4 7 4 Utility 1 | . . 1 2 Weapon 3 | . 2 3 4 Tool/Special . | . . . . Unused Backups 12 | . 3 1 8 Power 2 | . 1 . 1 Propulsion 4 | . 1 1 2 Utility 3 | . . . 3 Weapon 3 | . 1 . 2 Tool/Special . | . . . . Average Slot Usage (%) 78 | . 83 72 79 Engine 12 | . 14 10 9 Treads 12 | . 14 10 9 Wheel 12 | . 13 10 11 Device 3 | . . 3 17 Storage 12 | . 14 11 11 Protection 1 | . . 3 . Energy Gun 5 | . 4 8 . Ballistic Gun 16 | . 21 12 9 Peak Build Rating 18 | 6 10 14 18 Average Rating 9 | 5 6 11 15 On Entrance 5 | . 6 10 5 Avg Prop Armor Cover (%) 9 | 4 9 10 9 Naked Turns . | . . . . Heaviest Build 39 | 12 31 39 39 Greatest Support 40 | 20 40 20 12 Greatest Overweight (x) 9 | 1 9 3 3 Average Overweight (x) 1 | . 1 2 2 Largest Inventory Capacity 15 | 8 15 15 15 Average Capacity 14 | 7 14 15 15 Most Carried 15 | 3 15 15 13 Average Carried 11 | 1 9 14 12 Final Capacity 15 | 8 15 15 15 Final Carried 15 | 3 15 12 13 Class Distribution -------------------- 100% | Mutant Dominant Class ---------------- Mutant | -10/Materials Mutant | -9/Materials Mutant | -9/Storage Resources | -11 -10 -9 -9 ----------- Run | Yrd Mat Mat Sto Matter Collected 937 | 176 413 314 34 Remotely . | . . . . Salvage Created 883 | . 198 572 113 Parts 50 | . 12 33 5 Haulers Intercepted . | . . . . Recyclers Shooed 2 | . 1 1 . Parts Field Recycled . | . . . . Retrieved Matter . | . . . . Parts Self-Destructed . | . . . . Prevented . | . . . . Parts Restored . | . . . . Kills | -11 -10 -9 -9 ------- Run | Yrd Mat Mat Sto Combat Hostiles Destroyed 29 | . 6 20 3 Guns 15 | . 3 10 2 Cannons 1 | . . . 1 AOE 13 | . 3 10 . Classes Destroyed 9 | . 2 7 . Worker 1 | . 1 . . Builder 1 | . . 1 . Recycler 1 | . . 1 . Mechanic 1 | . . 1 . Operator 1 | . . 1 . Swarmer 10 | . . 9 1 Grunt 16 | . 6 8 2 Brawler 1 | . . 1 . Sentry 2 | . . 2 . Best Kill Streak 6 | . 3 6 3 Combat Bots Only 4 | . 3 4 3 Max Kills in Single Turn 4 | . 2 4 1 Gunslinging . | . . . . Exploded 3 | . 2 3 . Melee . | . . . . Uniques/NPCs Destroyed . | . . . . Combat | -11 -10 -9 -9 -------- Run | Yrd Mat Mat Sto Hostile Shots Fired 225 | . 42 155 28 Missed 49 | . 11 32 6 Hits 176 | . 31 123 22 Melee 5 | . . 5 . Projectile 171 | . 31 118 22 Critical Strikes 2 | . . 2 . Damage Taken 2465 | . 606 1606 253 Core 511 | . 98 360 53 Absorbed by Shields . | . . . . Core Remaining (%) 80 | 100 60 . . Volleys Fired 83 | . 24 49 10 Largest 2 | . 2 2 2 Hottest 95 | . 40 95 91 Shots Fired 145 | . 36 89 20 Gun 116 | . 26 80 10 Cannon 10 | . . . 10 Launcher 19 | . 10 9 . Special . | . . . . Kinetic 99 | . 26 63 10 Thermal 27 | . . 17 10 Explosive 19 | . 10 9 . Electromagnetic . | . . . . Robot Hit Streak 13 | . 6 13 6 Robot Miss Streak 5 | . 2 5 5 Penetration Max . | . . . . Secondary Targets 1 | . . 1 . Max Gunslinging Chain 1 | . . 1 . Shots Hit Robots 95 | . 18 65 12 Core Hits 65 | . 13 47 5 Critical Kills . | . . . . Critical Parts Destroyed . | . . . . Critical Strikes . | . . . . Melee Attacks . | . . . . Impact . | . . . . Slashing . | . . . . Piercing . | . . . . Sneak Attacks . | . . . . Combat Hostiles . | . . . . Follow-up Attacks . | . . . . Damage Inflicted 2587 | . 468 1872 247 Guns 1250 | . 229 919 102 Cannons 145 | . . . 145 Explosions 1192 | . 239 953 . Melee . | . . . . Ramming . | . . . . Kinetic 1025 | . 229 694 102 Thermal 370 | . . 225 145 Explosive 1192 | . 239 953 . Electromagnetic . | . . . . Impact . | . . . . Slashing . | . . . . Piercing . | . . . . Highest Corruption 1 | . 1 . . Average Corruption 1 | . 1 . . Corruption Purged . | . . . . Corruption Blocked . | . . . . Effects 2 | . 2 . . Matter Fused 1 | . 1 . . Energy Discharges 1 | . 1 . . Overload Shots . | . . . . Overflow Damage 43 | . . 42 1 Projectiles 1 | . . . 1 Explosions 42 | . . 42 . Melee . | . . . . Knockbacks . | . . . . Impact . | . . . . Kinetic . | . . . . Secondary . | . . . . Self-Inflicted Damage 23 | . 19 4 . Shots 2 | . 1 1 . Rammed . | . . . . Targets Rammed . | . . . . Kicked . | . . . . Crushed . | . . . . Highest Temperature 120 | . 3 120 81 Average Temperature 30 | . 1 29 44 Received Heat Transfer 723 | . 195 441 87 Siege Activations . | . . . . Martial Activations . | . . . . Shielding Activations . | . . . . Robots Disrupted . | . . . . Combat Hostiles . | . . . . Robots Corrupted . | . . . . Combat Hostiles . | . . . . Parts Fried . | . . . . Impact Corruptions . | . . . . Robots Melted . | . . . . Combat Hostiles . | . . . . Parts Melted . | . . . . Heat Transferred 549 | . . 290 259 Parts Sabotaged . | . . . . Parts Stolen . | . . . . Parts Stripped . | . . . . Power Chain Reactions . | . . . . Alert | -11 -10 -9 -9 ------- Run | Yrd Mat Mat Sto Maximum Alert Level 1 | . . 1 . Low Security (%) 82 | 100 100 58 100 Level 1 17 | . . 41 . Level 2 . | . . . . Level 3 . | . . . . Level 4 . | . . . . Level 5 . | . . . . High Security . | . . . . Max Security . | . . . . Peak Influence 278 | . 85 278 95 Initial 95 | . . . 95 Average 75 | . 14 153 57 Influence Increases 901 | . 192 629 80 Destroy 0b10 Robot/C 580 | . 120 400 60 Destroy 0b10 Robot/NC 25 | . 5 20 . Destroy Leader 110 | . 20 80 10 Successful Hack 17 | . 8 . 9 Disable Machine 30 | . . 30 . Destroy Structure 79 | . 24 54 1 Lose Combat Pursuer 60 | . 15 45 . Influence Decreases 840 | . 189 405 246 Entered New Map 135 | . . 3 132 Time Decay 585 | . 189 312 84 Lost Part 90 | . . 90 . Lost Ally 30 | . . . 30 Squads Dispatched 8 | . 1 5 2 Investigation 1 | . 1 . . Extermination . | . . . . Reinforcement 7 | . . 5 2 Assault . | . . . . Garrison . | . . . . Intercept . | . . . . Searches Triggered . | . . . . Construction Impeded 2 | . . 2 . Haulers Reinforced . | . . . . Active Scanning Responses . | . . . . Cargo Convoy Interrupts . | . . . . Stealth | -11 -10 -9 -9 --------- Run | Yrd Mat Mat Sto Distress Signals 5 | . 1 1 3 Communications Jammed . | . . . . Distress Signals . | . . . . Times Spotted 50 | . 11 32 7 Peak Tracking Total 11 | . 3 11 5 Tactical Retreats 3 | . 1 2 . Traps | -11 -10 -9 -9 ------- Run | Yrd Mat Mat Sto Traps Triggered 9 | . 7 . 2 Indirectly . | . . . . Trap Hack Attempts . | . . . . Triggered . | . . . . Disarmed . | . . . . Reprogrammed . | . . . . Reused . | . . . . Traps Extracted . | . . . . Installed . | . . . . Triggered . | . . . . Machines | -11 -10 -9 -9 ---------- Run | Yrd Mat Mat Sto Machines Disabled 2 | . . 2 . Max in Single Turn 1 | . . 1 . Machines Repaired . | . . . . Machines Dismantled . | . . . . Machines Sabotaged . | . . . . Overloaded Fab Kills . | . . . . Hacking | -11 -10 -9 -9 --------- Run | Yrd Mat Mat Sto Machines Accessed 3 | . 1 . 2 Terminals 3 | . 1 . 2 Fabricators . | . . . . Repair Stations . | . . . . Recycling Units . | . . . . Scanalyzers . | . . . . Garrison Access . | . . . . Total Hacks 5 | . 2 . 3 Successful 3 | . 1 . 2 Failed 2 | . 1 . 1 Catastrophic . | . . . . Database Lockouts . | . . . . Manual 2 | . 2 . . Terminals 5 | . 2 . 3 Fabricators . | . . . . Repair Stations . | . . . . Recycling Units . | . . . . Scanalyzers . | . . . . Garrison Access . | . . . . Terminal Hacks 3 | . 1 . 2 Open Door 2 | . . . 2 Branch Access Points 1 | . 1 . . Fabricator Hacks . | . . . . Repair Station Hacks . | . . . . Recycling Unit Hacks . | . . . . Scanalyzer . | . . . . Garrison Access Hacks . | . . . . Unauthorized Hacks . | . . . . Terminals . | . . . . Fabricators . | . . . . Repair Stations . | . . . . Recycling Units . | . . . . Scanalyzers . | . . . . Garrison Access . | . . . . Data Cores Recovered . | . . . . Used . | . . . . Hacking Detections 2 | . 1 . 1 Full Trace Events . | . . . . Feedback Events . | . . . . Feedback Blocked . | . . . . Robot Schematics Acquired . | . . . . Robots Built . | . . . . Authchips . | . . . . Time . | . . . . Total Robot Build Rating . | . . . . Part Schematics Acquired . | . . . . Parts Built . | . . . . Authchips . | . . . . Time . | . . . . Total Part Build Rating . | . . . . Part Studies Acquired . | . . . . Parts Repaired . | . . . . Time . | . . . . Parts Recycled . | . . . . Recycled Matter . | . . . . Retrieved Matter . | . . . . Retrieved Components . | . . . . Parts Scanalyzed . | . . . . Part Schematics Acquired . | . . . . Parts Damaged . | . . . . Bothacking | -11 -10 -9 -9 ------------ Run | Yrd Mat Mat Sto Used RIF Installer . | . . . . Robots Hacked . | . . . . Non-combat . | . . . . Combat . | . . . . Robot Hacks Applied . | . . . . Relay Couplers Released . | . . . . Fabnet Peak Effective % . | . . . . Robots Rewired . | . . . . Allies Hacked . | . . . . Hacks Repelled . | . . . . Allies | -11 -10 -9 -9 -------- Run | Yrd Mat Mat Sto Total Allies . | . . . . Largest Group . | . . . . Highest-Rated Group . | . . . . Highest-Rated Ally . | . . . . Total Orders 2 | . . . 2 ROAM 1 | . . . 1 EXPLORE 1 | . . . 1 Ally Attacks . | . . . . Total Damage . | . . . . Kills . | . . . . Allies Corrupted . | . . . . Allies Melted . | . . . . Intel | -11 -10 -9 -9 ------- Run | Yrd Mat Mat Sto Active Infowar (turns) . | . . . . Robot Analysis Total . | . . . . Derelict Logs Recovered . | . . . . Drone Launches 12 | . . . 12 Drone Recoveries . | . . . . Exploration | -11 -10 -9 -9 ------------- Run | Yrd Mat Mat Sto Turns Passed 1995 | 60 922 830 183 Spaces Moved 1115 | 35 510 501 69 Core 6 | 4 2 . . Treads 197 | 26 167 4 . Legs . | . . . . Wheels 912 | 5 341 497 69 Hover . | . . . . Flight . | . . . . Fastest Speed 50 | 50 95 105 105 Average Speed 138 | 137 151 126 124 Slowest Speed 500 | 160 500 240 135 Overloaded Moves . | . . . . Propulsion Burnouts . | . . . . Robots Hopped . | . . . . Potential Cave-ins . | . . . . Cave-ins Triggered . | . . . . Exploration Rate (%) 46 | 4 92 40 51 Regions Visited 3 Branch Regions 1 Pre-discovered Areas . | . . . . Known Exits Taken . | . . . . Unknown Exits Taken 3 | 1 1 1 . Scrap Searched . | . . . . Spaces Dug . | . . . . Terrain Destroyed 96 | . 37 59 . Melee . | . . . . Projectile . | . . . . AOE 96 | . 37 59 . Terrain Rammed . | . . . . Walls Destroyed . | . . . . Machines Disabled . | . . . . Actions | -11 -10 -9 -9 --------- Run | Yrd Mat Mat Sto Total 1420 | 45 619 606 150 Wait 122 | . 43 31 48 Move 1112 | 34 509 500 69 Hop . | . . . . Pick Up 29 | 5 17 1 6 Fast Attach 24 | 4 12 6 2 Attach 14 | 2 2 3 7 Detach 2 | . . . 2 Swap 15 | . 5 10 . Drop 13 | . 7 6 . Fire 83 | . 24 49 10 Melee . | . . . . Ram . | . . . . Kick . | . . . . Crush . | . . . . Escape Stasis . | . . . . Rewire . | . . . . Trap . | . . . . Miscellaneous 6 | . . . 6 Route ------- -11/Scrapyard -10/Materials (discovered 4 exits: [*Mat x3] / Min) -9/Materials (discovered 2 exits: [*Min] / *Sto) -9/Storage History --------- Turn | Location | Event 7 | -11/Scrapyard | Discovered new exit (range 16) 61 | -11/Scrapyard | Entered Materials 62 | -10/Materials | Met a group of wandering Federalists 82 | -10/Materials | Identified exit to Mines 314 | -10/Materials | Build established: Mutant 349 | -10/Materials | Discovered new exit (range 16) 659 | -10/Materials | Lost 3 parts (1n2w) 731 | -10/Materials | Discovered new exit (range 16) 961 | -10/Materials | Discovered new exit (range 11) 983 | -10/Materials | Entered another Materials area 983 | -9/Materials | Evolved 2 slots: Utility x2 1544 | -9/Materials | Discovered new exit (range 10) 1775 | -9/Materials | Discovered new exit (range 7) 1780 | -9/Materials | Core integrity fell below 50% 1808 | -9/Materials | Core integrity fell below 20% 1813 | -9/Materials | Entered Storage 1835 | -9/Storage | Lost 8 parts (1p3n1u3w) 1928 | -9/Storage | Lost 3 allies 1996 | -9/Storage | Destroyed by Y-45 Defender with Beam Rifle Last Messages --------------- 01969_ Drone retrieval failed, bay integrity insufficient for repairs. 01970_ Drone destroyed. 01976_ Drone retrieval failed, bay integrity insufficient for repairs. 01976_ Drone destroyed. 01977_ Drone retrieval failed, bay integrity insufficient for repairs. 01979_ G-47 Trooper destroyed. 01979_ Drone retrieval failed, bay integrity insufficient for repairs. 01979_ K-01 Serf collects debris. 01980_ Drone retrieval failed, bay integrity insufficient for repairs. 01982_ Destroyed Flight Unit. 01982_ G-34 Mercenary destroyed. 01982_ S-10 Pest destroyed. 01982_ K-01 Serf collects debris. 01983_ Drone retrieval failed, bay integrity insufficient for repairs. 01985_ K-01 Serf collects debris. 01990_ S-10 Pest destroyed. 01992_ K-01 Serf destroyed. 01993_ Drone retrieval failed, bay integrity insufficient for repairs. Map ----- +----------------------------------------------------+ | #?????????????????????# # # #?????? | | ?????????????????????# + """" #?#?????? | | ??????????##########?# # """" #???????? | | ??????????# ### % # """" #???????? | | #??????????# + +?""?" ????????? | | #?########## """" ### #####?? ???????????? | | ### #????"" #?# ##??????????????????? | | #"" # ????"" #?# #???????????????????? | | #?T """ # "????" #?#### #???????????????????? | | #?" """ # "???" #????# #???????????????????? | | #?? !?"""?# """" #????# #???????????????????? | | ### ? ?# #????# #???????????????????? | | ###+###+######+##########/#+#???????????????????? | | + #??????????########## | | % ##### """"" #??????????# | | ##+#####+#### ##???# "???" #??????????# | | ### #??# #????# "??"" #??????????# | | #?# #??# #????# ""??" #???######## | | #?# #??# #????# "???" #??##T#!!!!# """ """ | | #?# ####+###### """"" #??# # """ """ | | #?# ## # #??# # !!# """ """ | | ??# ## """" # [% #??# ###### | | ??# ## "??"" #+###Y########+##########+#### | | ??# ## "???"" # [Y!%[n n ^ | | ??# ## ""???" /g =%n n ^ | | ??# ## ""??" # %@%^ n ^^ | | ??# ## """" ################+############# | | ??########## #??????????##### #??????????? | | ???????????# #??????????# #??????????? | | ???????????##########??????????#[[ #??????????? | | ???????????????????????????????#####T##??????????? | | ???????????????????????????????????###???????????? | | ?????????????????????????????????????????????????? | | ?????????????????????????????????????????????????? | | ?????????????????????????????????????????????????? | | ?????????????????????????????????????????????????? | | ?????????????????????????????????????????????????? | | ?????????????????????????????????????????????????? | | ?????????????????????????????????????????????????? | | | | | | | | | | | | | | | | | | | | | | | +----------------------------------------------------+ Best States ------------- Heat Dissipation 38 Energy Generation 10 Energy Capacity 250 Matter Stores 300 Matter Capacity 300 Sight Range 16 Terrain Scan Density 10 Armor Coverage 225 Evasion (%) 44 Recoil Reduction 2 Item Schematics ----------------- None Robot Schematics ------------------ None Fabricated ------------ Nothing Repaired ---------- Nothing Studied --------- None Alien Tech Used ----------------- None Achievements -------------- None Challenges ------------ None Game ------ Seed SpectralScanDerivative Manual? 0 Play Time 00:21:22 Cumulative 100.8 hours Start 2025.11.03 @ 13:55:13 End 2025.11.03 @ 14:46:55 Sessions 1 Manual Loads 0 Difficulty Rogue Special Mode None Game No. 137 Rogue 137 Adventurer 0 Explorer 0 Win Type - Total 1 Types 1/0/0/0/0/0/0/0/0/0 Lore% 29 Gallery% 44 Achievement% 29 Wizard Run 0 Options --------- Layout 0 ASCII 0 Keyboard 0 Movement Mouse Keybinds 0 Fullscreen 1 Font 18/Smallcaps Map View 76x50 Zoom Use 0% Tactical HUD 1 Map Filters NONE Filters NONE Steam 1 RUN: 896ba3d2-6da7-43e6-9d3c-f856145f768c